fUST/lending_fUST_20260115
["ID","MTS","AMOUNT","RATE_DAILY","PERIOD"]
[401931151,1768409439956,-900.0,0.00024709,2]
[401931152,1768409439965,-190.0,0.00024719,2]
[401931153,1768409439974,-500.0,0.00024735,2]
[401931154,1768409439984,-791.34915639,0.00024754,2]
[401931155,1768409439993,-500.0,0.00024758,2]
[401931156,1768409440003,-5000.0,0.00024767,2]
[401931158,1768409440012,-500.0,0.00024798,2]
[401931160,1768409440024,-272.0,0.00024803,7]
[401931161,1768409440034,-272.0,0.00024811,2]
[401931163,1768409440043,-900.0,0.00024829,2]
[401931165,1768409440053,-284.26879672,0.00024849,14]
[401931167,1768409440062,-272.0,0.00024856,2]
[401931168,1768409440071,-1797.54369886,0.00024896,2]
[401931170,1768409440081,-500.0,0.00024899,2]
[401931171,1768409440090,-461703.142212,0.000249,2]
[401931172,1768409440100,-272.0,0.00024904,2]
[401931173,1768409440109,-159.0,0.00024932,7]
[401931174,1768409440119,-46170.3142212,0.00024941,2]
[401931176,1768409440129,-900.0,0.00024945,2]
[401931178,1768409440139,-500.0,0.00024948,2]
[401931180,1768409440149,-900.0,0.00024951,2]
[401931181,1768409440158,-500.0,0.00024966,2]
[401931182,1768409440167,-522.88356834,0.00024979,2]
[401931183,1768409440177,-272.0,0.00024988,2]
[401931184,1768409440186,-600.0,0.00025,2]
[401931185,1768409440196,-11818.98,0.00025,2]
[401931186,1768409440205,-241.0,0.00025,2]
[401931187,1768409440214,-159.0,0.00025,7]
[401931188,1768409440223,-1041.66666667,0.00025,30]
[401931189,1768409440232,-272.0,0.00025007,2]
[401931190,1768409440241,-500.0,0.0002502,7]
[401931191,1768409440250,-500.0,0.00025044,7]
[401931192,1768409440259,-168.28,0.00025056,2]
[401931193,1768409440268,-272.0,0.00025099,2]
[401931194,1768409440277,-1600.0,0.00025102,7]
[401931195,1768409440286,-796.0967193,0.00025108,7]
[401931196,1768409440299,-272.0,0.00025154,7]
[401931197,1768409440308,-250.0,0.00025205,2]
[401931198,1768409440317,-272.0,0.00025275,7]
[401931199,1768409440326,-350.8719513,0.00025494,19]
[401931200,1768409440334,-272.0,0.00025513,2]
[401931201,1768409440343,-3166.0,0.00025556,7]
[401931202,1768409440353,-3166.0,0.00025606,2]
[401931203,1768409440361,-350.0,0.00025753,2]
[401931204,1768409440370,-183.7,0.00025758,2]
[401931205,1768409440380,-3381.35429965,0.00025771,2]
[401931208,1768409440389,-272.0,0.00025853,7]
[401931210,1768409440399,-159.0,0.0002589,7]
[401931213,1768409440408,-158.0,0.00025945,14]
[401931216,1768409440418,-92340.6284424,0.00025963,2]
[401931219,1768409440427,-191330.9551135,0.00025973,2]
[401931222,1768409440436,-151.0,0.00025973,7]
[401931225,1768409440447,-151.0,0.00025973,7]
[401931228,1768409440456,-151.0,0.00025973,7]
[401931230,1768409440466,-151.0,0.00025973,7]
[401931232,1768409440475,-151.0,0.00025973,7]
[401931234,1768409440484,-151.0,0.00025973,7]
[401931236,1768409440494,-151.0,0.00025973,7]
[401931238,1768409440503,-151.0,0.00025973,7]
[401931240,1768409440514,-151.0,0.00025973,7]
[401931242,1768409440523,-151.0,0.00025973,7]
[401931244,1768409440532,-151.0,0.00025973,7]
[401931246,1768409440542,-151.0,0.00025973,7]
[401931248,1768409440553,-151.0,0.00025973,7]
[401931250,1768409440562,-151.0,0.00025973,7]
[401931252,1768409440572,-188.040511,0.00025973,7]
[401931254,1768409440582,-151.0,0.00025973,7]
[401931256,1768409440592,-188.040511,0.00025973,7]
[401931258,1768409440601,-151.0,0.00025973,7]
[401931260,1768409440615,-151.0,0.00025973,7]
[401931262,1768409440628,-188.040511,0.00025973,7]
[401931265,1768409440645,-151.0,0.00025973,7]
[401931267,1768409440659,-188.040511,0.00025973,7]
[401931270,1768409440676,-151.0,0.00025973,7]
[401931272,1768409440689,-234.643774,0.00025973,7]
[401931274,1768409440703,-151.0,0.00025973,7]
[401931276,1768409440714,-240.755518,0.00025973,7]
[401931278,1768409440724,-151.0,0.00025973,7]
[401931280,1768409440735,-151.0,0.00025973,7]
[401931283,1768409440746,-151.0,0.00025973,7]
[401931285,1768409440757,-151.0,0.00025973,2]
[401931287,1768409440768,-151.0,0.00025973,7]
[401931289,1768409440779,-151.0,0.00025973,7]
[401931291,1768409440790,-3169.0,0.00025975,7]
[401931294,1768409440802,-600.0,0.00026,2]
[401931296,1768409440814,-974.29,0.00026,7]
[401931298,1768409440825,-1041.66666667,0.00026,7]
[401931300,1768409440838,-419.66041848,0.00026013,2]
[401931303,1768409440849,-3753.2,0.00026027,2]
[401931305,1768409440860,-3166.0,0.00026032,2]
[401931307,1768409440872,-206.597273,0.00026065,30]
[401931309,1768409440884,-11818.98,0.000261,2]
[401931311,1768409440896,-272.0,0.00026142,2]
[401931313,1768409440906,-272.0,0.00026282,2]
[401931316,1768409440918,-350.8719513,0.0002629,21]
[401931318,1768409440928,-151.0,0.000264,19]
[401931320,1768409440939,-152.27,0.000264,7]
[401931322,1768409440953,-272.0,0.00026445,2]
[401931325,1768409440969,-5000.0,0.00026624,2]
[401931327,1768409440981,-3166.0,0.00026632,2]
[401931329,1768409440992,-361.184673,0.00026633,7]
[401931331,1768409441003,-361.184673,0.00026633,7]
[401931334,1768409441014,-361.184673,0.00026633,7]
[401931336,1768409441027,-361.184673,0.00026633,7]
[401931338,1768409441038,-151.0,0.00026633,7]
[401931340,1768409441050,-151.0,0.00026633,7]
[401931342,1768409441060,-154.950645,0.00026633,7]
[401931345,1768409441072,-231.464097,0.00026633,7]
[401931347,1768409441082,-154.950645,0.00026633,7]
[401931349,1768409441093,-154.950645,0.00026633,7]
[401931351,1768409441104,-151.0,0.00026633,7]
[401931353,1768409441116,-154.950645,0.00026633,7]
[401931355,1768409441128,-151.0,0.00026633,7]
[401931358,1768409441139,-151.0,0.00026633,7]
[401931360,1768409441150,-151.0,0.00026633,7]
[401931362,1768409441161,-151.0,0.00026633,7]
[401931364,1768409441173,-151.0,0.00026633,7]
[401931366,1768409441186,-217.272847,0.00026633,7]
[401931369,1768409441201,-164.260276,0.00026633,7]
[401931371,1768409441212,-241.541461,0.00026633,7]
[401931373,1768409441223,-174.038823,0.00026633,7]
[401931375,1768409441234,-174.038823,0.00026633,7]
[401931377,1768409441246,-174.038823,0.00026633,7]
[401931380,1768409441257,-174.038823,0.00026633,7]
[401931382,1768409441269,-504.340971,0.00026633,7]
[401931384,1768409441280,-504.340971,0.00026633,7]
[401931386,1768409441293,-151.0,0.00026633,7]
[401931389,1768409441304,-1428.161168,0.00026633,7]
[401931391,1768409441313,-171.320259,0.00026633,7]
[401931393,1768409441323,-504.340971,0.00026633,7]
[401931395,1768409441332,-151.0,0.00026633,7]
[401931397,1768409441342,-1428.161168,0.00026633,7]
[401931399,1768409441352,-504.340971,0.00026633,7]
[401931401,1768409441362,-151.0,0.00026633,7]
[401931403,1768409441373,-1428.161168,0.00026633,7]
[401931405,1768409441384,-151.0,0.00026633,7]
[401931408,1768409441396,-1428.161168,0.00026633,7]
[401931410,1768409441407,-151.0,0.00026633,7]
[401931413,1768409441419,-151.0,0.00026633,7]
[401931415,1768409441430,-172.810853,0.00026633,7]
[401931417,1768409441440,-172.810853,0.00026633,7]
[401931419,1768409441452,-172.810853,0.00026633,7]
[401931421,1768409441463,-172.810853,0.00026633,7]
[401931423,1768409441473,-1000.0,0.00026703,30]
[401931426,1768409441486,-1000.0,0.00026703,30]
[401931428,1768409441496,-579.0,0.00026703,30]
[401931430,1768409441509,-153.11,0.000268,7]
[401931432,1768409441520,-151.0,0.000268,7]
[401931434,1768409441531,-431.74536,0.000268,7]
[401931436,1768409441541,-431.74536,0.000268,7]
[401931439,1768409441551,-151.0,0.000268,7]
[401931441,1768409441560,-431.74536,0.000268,7]
[401931443,1768409441570,-431.74536,0.000268,7]
[401931445,1768409441580,-151.0,0.000268,7]
[401931447,1768409441590,-1564.452362,0.000268,7]
[401931449,1768409441599,-151.0,0.000268,7]
[401931452,1768409441620,-1564.452362,0.000268,7]
[401931455,1768409441633,-310.986631,0.000268,7]
[401931457,1768409441646,-310.986631,0.000268,7]
[401931459,1768409441657,-310.986631,0.000268,7]
[401931462,1768409441670,-153.839404,0.000268,7]
[401931464,1768409441681,-310.986631,0.000268,7]
[401931467,1768409441695,-3688.352014,0.000268,7]
[401931469,1768409441707,-3688.352014,0.000268,7]
[401931471,1768409441718,-3688.352014,0.000268,7]
[401931473,1768409441730,-3688.352014,0.000268,7]
[401931476,1768409441743,-151.0,0.000268,7]
[401931478,1768409441754,-151.0,0.000268,7]
[401931480,1768409441766,-272.028283,0.000268,7]
[401931483,1768409441781,-600.0,0.00027,2]
[401931485,1768409441792,-11818.98,0.00027,2]
[401931487,1768409441804,-1041.66666667,0.00027,7]
[401931489,1768409441815,-1041.66666667,0.00027,30]
[401931492,1768409441827,-179.0,0.00027041,14]
[401931494,1768409441839,-1367.0,0.00027077,2]
[401931497,1768409441857,-2147.0,0.00027077,2]
[401931499,1768409441868,-629.0,0.00027077,2]
[401931500,1768409441879,-202.526,0.00027077,2]
[401931501,1768409441890,-350.8719513,0.00027086,22]
[401931502,1768409441902,-974.29,0.000271,7]
[401931503,1768409441913,-183.7,0.00027105,5]
[401931504,1768409441924,-165.0,0.00027185,7]
[401931505,1768409441935,-1797.54369886,0.00027393,2]
[401931506,1768409441953,-3000.0,0.00027396,14]
[401931507,1768409441964,-300.0,0.00027397,2]
[401931508,1768409441976,-300.0,0.00027397,2]
[401931509,1768409441987,-300.0,0.00027397,2]
[401931510,1768409441998,-300.0,0.00027397,2]
[401931511,1768409442010,-300.0,0.00027397,2]
[401931512,1768409442021,-300.0,0.00027397,2]
[401931513,1768409442031,-300.0,0.00027397,2]
[401931514,1768409442043,-300.0,0.00027397,2]
[401931515,1768409442053,-300.0,0.00027397,2]
[401931516,1768409442064,-300.0,0.00027397,2]
[401931517,1768409442076,-300.0,0.00027397,2]
[401931518,1768409442087,-156.87039,0.00027397,7]
[401931519,1768409442098,-9711.620304,0.00027487,30]
[401931520,1768409442108,-3753.2,0.00027671,4]
[401931521,1768409442119,-350.8719513,0.00027882,24]
[401931522,1768409442129,-250.0,0.00027945,5]
[401931523,1768409442139,-600.0,0.00028,2]
[401931524,1768409442150,-453.0846996,0.00028013,2]
[401931525,1768409442160,-913.71,0.000281,3]
[401931526,1768409442170,-178.0,0.00028137,14]
[401931527,1768409442181,-151.0,0.000282,12]
[401931528,1768409442191,-151.0,0.000282,15]
[401931529,1768409442203,-3000.0,0.00028218,14]
[401931530,1768409442214,-153.0,0.00028408,30]
[401931531,1768409442224,-602.0059149,0.00028408,30]
[401931532,1768409442234,-183.7,0.00028452,5]
[401931533,1768409442245,-5000.0,0.00028482,2]
[401931534,1768409442255,-350.0,0.00028493,5]
[401931535,1768409442265,-2000.0,0.00028543,7]
[401931536,1768409442275,-177.0,0.00028664,120]
[401931537,1768409442285,-350.8719513,0.00028678,25]
[401931538,1768409442296,-11818.98,0.000287,2]
[401931539,1768409442306,-500.0,0.00028767,7]
[401931540,1768409442317,-345.0,0.00028786,120]
[401931541,1768409442327,-574.0,0.00028816,120]
[401931542,1768409442338,-974.29,0.000289,7]
[401931543,1768409442348,-163.17601867,0.0002899,90]
[401931544,1768409442358,-159.0,0.00028997,14]
[401931545,1768409442371,-30000.0,0.00029,7]
[401931546,1768409442381,-20000.0,0.00029,10]
[401931547,1768409442393,-20144.0,0.00029,14]
[401931548,1768409442404,-1041.66666667,0.00029,10]
[401931549,1768409442418,-1041.66666667,0.00029,7]
[401931552,1768409442430,-3000.0,0.0002904,14]
[401931553,1768409442443,-450.0,0.00029041,5]
[401931554,1768409442455,-153.0,0.00029068,30]
[401931555,1768409442467,-153.0,0.00029068,30]
[401931556,1768409442478,-153.0,0.00029068,30]
[401931557,1768409442489,-167.77,0.000291,7]
[401931558,1768409442501,-2000.0,0.00029116,7]
[401931559,1768409442511,-602.0059149,0.0002923,30]
[401931560,1768409442522,-153.0,0.0002923,30]
[401931561,1768409442534,-306.0,0.0002923,30]
[401931562,1768409442544,-153.0,0.0002923,30]
[401931563,1768409442555,-306.0,0.0002923,30]
[401931564,1768409442568,-306.0,0.0002923,30]
[401931565,1768409442579,-4827.09667695,0.00029232,2]
[401931566,1768409442589,-157.0,0.00029233,33]
[401931567,1768409442600,-3753.2,0.00029315,6]
[401931568,1768409442611,-194.2006467,0.00029315,30]
[401931569,1768409442623,-194.2006467,0.00029315,30]
[401931570,1768409442634,-194.2006467,0.00029315,30]
[401931571,1768409442645,-369.509187,0.00029315,30]
[401931572,1768409442659,-194.2006467,0.00029315,30]
[401931573,1768409442672,-194.2006467,0.00029315,30]
[401931574,1768409442683,-194.2006467,0.00029315,30]
[401931575,1768409442693,-443.810835,0.00029315,30]
[401931576,1768409442705,-1000.0,0.00029374,30]
[401931577,1768409442716,-1000.0,0.00029374,30]
[401931578,1768409442727,-1000.0,0.00029374,30]
[401931579,1768409442737,-202.506,0.00029437,23]
[401931580,1768409442748,-350.8719513,0.00029474,26]
[401931581,1768409442758,-152.27,0.000295,7]
[401931582,1768409442769,-151.0,0.00029579,7]
[401931583,1768409442779,-151.0,0.00029579,7]
[401931584,1768409442790,-151.0,0.00029579,7]
[401931585,1768409442801,-295.309906,0.00029579,7]
[401931586,1768409442812,-151.0,0.00029579,7]
[401931587,1768409442822,-151.0,0.00029579,7]
[401931588,1768409442833,-283.094916,0.00029579,7]
[401931589,1768409442843,-283.094916,0.00029579,7]
[401931590,1768409442853,-283.094916,0.00029579,7]
[401931591,1768409442863,-283.094916,0.00029579,7]
[401931592,1768409442873,-571.006248,0.00029579,7]
[401931593,1768409442884,-571.006248,0.00029579,7]
[401931594,1768409442894,-571.006248,0.00029579,7]
[401931595,1768409442904,-571.006248,0.00029579,7]
[401931596,1768409442914,-730.566458,0.00029579,7]
[401931597,1768409442925,-151.0,0.00029579,7]
[401931598,1768409442936,-730.566458,0.00029579,7]
[401931599,1768409442948,-151.0,0.00029579,7]
[401931600,1768409442958,-730.566458,0.00029579,7]
[401931601,1768409442970,-151.0,0.00029579,7]
[401931602,1768409442980,-730.566458,0.00029579,7]
[401931603,1768409442992,-151.0,0.00029579,7]
[401931604,1768409443003,-500.0,0.00029589,2]
[401931606,1768409443013,-500.0,0.00029589,2]
[401931608,1768409443029,-500.0,0.00029589,60]
[401931609,1768409443039,-500.0,0.00029589,60]
[401931610,1768409443049,-500.0,0.00029589,60]
[401931611,1768409443059,-500.0,0.00029589,60]
[401931612,1768409443069,-500.0,0.00029589,2]
[401931613,1768409443079,-500.0,0.00029589,60]
[401931614,1768409443089,-1000.0,0.00029589,120]
[401931615,1768409443100,-500.0,0.00029589,60]
[401931616,1768409443112,-500.0,0.00029589,60]
[401931617,1768409443122,-500.0,0.00029589,60]
[401931618,1768409443133,-500.0,0.00029589,60]
[401931619,1768409443144,-250.0,0.00029589,60]
[401931622,1768409443154,-587.0,0.00029589,60]
[401931623,1768409443166,-550.0,0.00029589,5]
[401931625,1768409443177,-778.0,0.000296,2]
[401931627,1768409443189,-2000.0,0.0002963,10]
[401931629,1768409443201,-10164.29938744,0.00029636,2]
[401931631,1768409443212,-2000.0,0.00029639,10]
[401931633,1768409443222,-2000.0,0.00029648,10]
[401931634,1768409443233,-2000.0,0.00029657,10]
[401931636,1768409443243,-2000.0,0.00029666,10]
[401931638,1768409443253,-2000.0,0.00029674,10]
[401931640,1768409443263,-2000.0,0.00029683,10]
[401931642,1768409443273,-2000.0,0.00029689,7]
[401931644,1768409443284,-2000.0,0.00029692,10]
[401931645,1768409443295,-11818.98,0.000297,2]
[401931646,1768409443305,-151.0,0.000297,7]
[401931647,1768409443317,-151.0,0.000297,7]
[401931648,1768409443328,-836.532277,0.000297,7]
[401931649,1768409443338,-836.532277,0.000297,7]
[401931650,1768409443349,-836.532277,0.000297,7]
[401931651,1768409443670,-836.532277,0.000297,7]
[401931652,1768409443680,-361.184673,0.000297,7]
[401931653,1768409443690,-361.184673,0.000297,7]
[401931654,1768409443700,-361.184673,0.000297,7]
[401931655,1768409443710,-361.184673,0.000297,7]
[401931656,1768409443719,-275.55471384,0.000297,7]
[401931657,1768409443729,-151.0,0.000297,7]
[401931658,1768409443738,-154.950645,0.000297,7]
[401931659,1768409443748,-154.950645,0.000297,7]
[401931660,1768409443757,-154.950645,0.000297,7]
[401931661,1768409443766,-151.0,0.000297,7]
[401931662,1768409443775,-154.950645,0.000297,7]
[401931663,1768409443784,-151.0,0.000297,7]
[401931664,1768409443794,-151.0,0.000297,7]
[401931665,1768409443803,-151.0,0.000297,7]
[401931666,1768409443812,-151.0,0.000297,7]
[401931667,1768409443821,-151.0,0.000297,7]
[401931668,1768409443831,-174.038823,0.000297,7]
[401931669,1768409443841,-174.038823,0.000297,7]
[401931670,1768409443850,-174.038823,0.000297,7]
[401931672,1768409443859,-174.038823,0.000297,7]
[401931674,1768409443868,-504.340971,0.000297,7]
[401931675,1768409443877,-504.340971,0.000297,7]
[401931676,1768409443886,-151.0,0.000297,7]
[401931677,1768409443895,-1428.161168,0.000297,7]
[401931678,1768409443904,-504.340971,0.000297,7]
[401931679,1768409443914,-151.0,0.000297,7]
[401931680,1768409443923,-1428.161168,0.000297,7]
[401931682,1768409443932,-504.340971,0.000297,7]
[401931684,1768409443942,-151.0,0.000297,7]
[401931685,1768409443956,-1428.161168,0.000297,7]
[401931686,1768409443965,-157.974003,0.000297,7]
[401931687,1768409443974,-1428.161168,0.000297,7]
[401931688,1768409443983,-151.0,0.000297,7]
[401931689,1768409443992,-172.810853,0.000297,7]
[401931690,1768409444002,-172.810853,0.000297,7]
[401931691,1768409444011,-172.810853,0.000297,7]
[401931692,1768409444022,-172.810853,0.000297,7]
[401931693,1768409444031,-151.0,0.000297,7]
[401931694,1768409444041,-151.0,0.000297,7]
[401931695,1768409444051,-155.398666,0.000297,7]
[401931696,1768409444060,-151.0,0.000297,2]
[401931697,1768409444070,-151.0,0.000297,7]
[401931698,1768409444079,-151.0,0.000297,7]
[401931699,1768409444089,-2000.0,0.00029701,10]
[401931700,1768409444099,-2000.0,0.0002971,10]
[401931701,1768409444109,-2000.0,0.00029718,10]
[401931702,1768409444119,-580.25340699,0.00029726,2]
[401931703,1768409444129,-500.0,0.00029726,2]
[401931704,1768409444139,-500.0,0.00029726,60]
[401931705,1768409444149,-500.0,0.00029726,60]
[401931706,1768409444158,-500.0,0.00029726,60]
[401931707,1768409444168,-500.0,0.00029726,60]
[401931708,1768409444178,-500.0,0.00029726,2]
[401931709,1768409444187,-500.0,0.00029726,60]
[401931710,1768409444197,-1000.0,0.00029726,120]
[401931711,1768409444207,-500.0,0.00029726,60]
[401931712,1768409444216,-500.0,0.00029726,60]
[401931713,1768409444225,-541.14675922,0.00029726,60]
[401931714,1768409444234,-500.0,0.00029726,60]
[401931715,1768409444244,-500.0,0.00029726,60]
[401931716,1768409444253,-500.0,0.00029726,60]
[401931717,1768409444262,-2000.0,0.00029727,10]
[401931718,1768409444271,-461.129494,0.00029731,7]
[401931719,1768409444281,-461.129494,0.00029731,7]
[401931720,1768409444290,-151.0,0.00029731,7]
[401931721,1768409444300,-461.129494,0.00029731,7]
[401931722,1768409444309,-461.129494,0.00029731,7]
[401931723,1768409444318,-288.909957,0.00029731,7]
[401931724,1768409444328,-288.909957,0.00029731,7]
[401931725,1768409444338,-288.909957,0.00029731,7]
[401931726,1768409444348,-288.909957,0.00029731,7]
[401931727,1768409444357,-169.388304,0.00029731,7]
[401931728,1768409444367,-151.0,0.00029731,7]
[401931729,1768409444376,-151.0,0.00029731,7]
[401931730,1768409444385,-151.0,0.00029731,7]
[401931731,1768409444394,-151.0,0.00029731,7]
[401931732,1768409444404,-151.0,0.00029731,7]
[401931733,1768409444413,-151.0,0.00029731,7]
[401931734,1768409444422,-151.0,0.00029731,7]
[401931735,1768409444432,-431.74536,0.00029731,7]
[401931736,1768409444441,-431.74536,0.00029731,7]
[401931737,1768409444451,-151.0,0.00029731,7]
[401931738,1768409444460,-431.74536,0.00029731,7]
[401931739,1768409444470,-431.74536,0.00029731,7]
[401931740,1768409444479,-1564.452362,0.00029731,7]
[401931741,1768409444489,-151.0,0.00029731,7]
[401931742,1768409444498,-1564.452362,0.00029731,7]
[401931743,1768409444508,-310.986631,0.00029731,7]
[401931744,1768409444518,-310.986631,0.00029731,7]
[401931745,1768409444527,-310.986631,0.00029731,7]
[401931746,1768409444536,-310.986631,0.00029731,7]
[401931747,1768409444545,-3688.352014,0.00029731,7]
[401931748,1768409444555,-3688.352014,0.00029731,7]
[401931749,1768409444564,-3688.352014,0.00029731,7]
[401931750,1768409444574,-3688.352014,0.00029731,7]
[401931751,1768409444583,-151.0,0.00029731,7]
[401931752,1768409444593,-151.0,0.00029731,7]
[401931753,1768409444603,-171.590908,0.00029731,7]
[401931754,1768409444612,-151.0,0.00029731,7]
[401931755,1768409444622,-151.0,0.00029731,7]
[401931756,1768409444631,-154.979883,0.00029731,7]
[401931757,1768409444641,-151.0,0.00029731,7]
[401931758,1768409444651,-151.0,0.00029731,7]
[401931759,1768409444664,-151.0,0.00029731,7]
[401931760,1768409444675,-225.938304,0.00029731,7]
[401931761,1768409444686,-151.0,0.00029731,7]
[401931762,1768409444696,-151.0,0.00029731,7]
[401931763,1768409444706,-151.0,0.00029731,7]
[401931764,1768409444717,-151.0,0.00029731,7]
[401931765,1768409444727,-151.0,0.00029731,7]
[401931766,1768409444737,-151.0,0.00029731,7]
[401931767,1768409444746,-188.040511,0.00029731,7]
[401931768,1768409444756,-151.0,0.00029731,7]
[401931769,1768409444766,-188.040511,0.00029731,7]
[401931770,1768409444775,-151.0,0.00029731,7]
[401931771,1768409444785,-151.0,0.00029731,7]
[401931772,1768409444795,-188.040511,0.00029731,7]
[401931773,1768409444804,-151.0,0.00029731,7]
[401931774,1768409444814,-188.040511,0.00029731,7]
[401931775,1768409444823,-151.0,0.00029731,7]
[401931776,1768409444832,-285.638493,0.00029731,7]
[401931777,1768409444842,-2000.0,0.00029736,10]
[401931778,1768409444852,-151.0,0.00029741,3]
[401931779,1768409444861,-250.0,0.00029741,3]
[401931780,1768409444871,-151.0,0.00029741,3]
[401931781,1768409444881,-168.3888056,0.00029741,3]
[401931782,1768409444890,-250.0,0.00029741,3]
[401931783,1768409444901,-2230.315306,0.00029741,3]
[401931784,1768409444911,-151.0,0.00029741,3]
[401931785,1768409444921,-250.0,0.00029741,3]
[401931786,1768409444932,-151.0,0.00029741,3]
[401931787,1768409444943,-174.61919141,0.00029741,3]
[401931788,1768409444954,-250.0,0.00029741,3]
[401931789,1768409444964,-461.67526834,0.00029741,3]
[401931790,1768409444973,-2312.83697232,0.00029741,3]
[401931791,1768409444983,-283.61044671,0.00029741,3]
[401931792,1768409444992,-151.0,0.00029741,3]
[401931793,1768409445001,-294.03317915,0.00029741,3]
[401931794,1768409445011,-151.0,0.00029741,3]
[401931795,1768409445023,-181.08010149,0.00029741,3]
[401931796,1768409445032,-478.75725327,0.00029741,3]
[401931797,1768409445042,-250.0,0.00029741,3]
[401931798,1768409445052,-713.64866101,0.00029741,3]
[401931799,1768409445061,-151.0,0.00029741,3]
[401931800,1768409445070,-151.0,0.00029741,3]
[401931801,1768409445079,-187.78006525,0.00029741,3]
[401931802,1768409445090,-250.0,0.00029741,3]
[401931803,1768409445099,-496.47127164,0.00029741,3]
[401931804,1768409445110,-151.0,0.00029741,3]
[401931805,1768409445119,-151.0,0.00029741,3]
[401931806,1768409445129,-250.0,0.00029741,3]
[401931807,1768409445140,-514.84070869,0.00029741,3]
[401931808,1768409445151,-250.0,0.00029741,3]
[401931809,1768409445161,-194.72792766,0.00029741,3]
[401931810,1768409445172,-151.0,0.00029741,3]
[401931811,1768409445183,-151.0,0.00029741,3]
[401931812,1768409445194,-250.0,0.00029741,3]
[401931813,1768409445205,-533.88981491,0.00029741,3]
[401931814,1768409445215,-250.0,0.00029741,3]
[401931815,1768409445225,-201.93286099,0.00029741,3]
[401931816,1768409445235,-151.0,0.00029741,3]
[401931817,1768409445245,-151.0,0.00029741,3]
[401931818,1768409445254,-250.0,0.00029741,3]
[401931819,1768409445264,-553.64373807,0.00029741,3]
[401931820,1768409445274,-250.0,0.00029741,3]
[401931821,1768409445284,-209.40437684,0.00029741,3]
[401931822,1768409445294,-151.0,0.00029741,3]
[401931823,1768409445304,-151.0,0.00029741,3]
[401931824,1768409445314,-250.0,0.00029741,3]
[401931825,1768409445326,-574.12855637,0.00029741,3]
[401931827,1768409445337,-250.0,0.00029741,3]
[401931829,1768409445346,-217.15233878,0.00029741,3]
[401931830,1768409445356,-151.0,0.00029741,3]
[401931831,1768409445365,-247.39667273,0.00029741,3]
[401931832,1768409445374,-250.0,0.00029741,3]
[401931833,1768409445384,-595.37131296,0.00029741,3]
[401931834,1768409445393,-250.0,0.00029741,3]
[401931836,1768409445402,-225.18697532,0.00029741,3]
[401931838,1768409445411,-163.79209166,0.00029741,3]
[401931839,1768409445420,-250.0,0.00029741,3]
[401931840,1768409445431,-617.40005154,0.00029741,3]
[401931841,1768409445441,-250.0,0.00029741,3]
[401931842,1768409445452,-233.51889341,0.00029741,3]
[401931844,1768409445461,-250.0,0.00029741,3]
[401931846,1768409445471,-640.24385345,0.00029741,3]
[401931848,1768409445480,-250.0,0.00029741,3]
[401931850,1768409445490,-250.0,0.00029741,3]